bitfinex-derivatives/quotes_SOLF0:USTF0_20250613
["timestamp","ask_amount","ask_price","bid_price","bid_amount"]
[1749798695101,6.9144,144.55,144.54,0.05227075]
[1749798695290,12.86447592,144.55,144.54,0.05227075]
[1749798695492,15.60861272,144.55,144.54,0.05227075]
[1749798695894,15.60863746,144.55,144.54,0.05227075]
[1749798696296,15.60857915,144.55,144.54,0.05227075]
[1749798696497,12.86447592,144.55,144.54,0.05227075]
[1749798696802,6.9144,144.55,144.54,0.05227075]
[1749798698309,6.9158,144.52,144.49,5.02252791]
[1749798699000,6.9151,144.54,144.49,5.02252791]
[1749798699191,6.9151,144.54,144.5,0.04793979]
[1749798699392,0.0471619,144.53,144.52,6.9158]
[1749798703706,0.0471619,144.53,144.5,0.04793979]
[1749798704097,0.0471619,144.53,144.51,6.9162]
[1749798704597,0.0471619,144.53,144.52,6.9158]
[1749798705507,0.0471619,144.53,144.52,11.93832791]
[1749798706202,0.0471619,144.53,144.52,6.9158]
[1749798708908,0.0471619,144.53,144.5,0.04793979]
[1749798709598,0.0471619,144.53,144.51,6.9159]
[1749798711605,6.9625619,144.53,144.51,6.9159]
[1749798712004,0.0471619,144.53,144.51,6.9159]
[1749798713012,6.9626619,144.53,144.51,6.9159]
[1749798713308,0.0471619,144.53,144.51,6.9159]
[1749798714209,6.9624619,144.53,144.51,6.9159]
[1749798714410,0.0471619,144.53,144.52,6.9158]
[1749798714704,12.90443285,144.53,144.5,0.04793979]
[1749798714909,6.9626619,144.53,144.5,0.04793979]
[1749798715111,6.9626619,144.53,144.51,6.9159]
[1749798715306,0.0471619,144.53,144.5,0.04793979]
[1749798715705,0.0471619,144.53,144.51,6.9163]
[1749798715906,0.0471619,144.53,144.5,0.04793979]
[1749798716298,0.0471619,144.53,144.52,6.9158]
[1749798716499,5.97180372,144.53,144.52,6.9158]
[1749798716704,5.97180372,144.53,144.51,6.916]
[1749798716904,0.0471619,144.53,144.5,0.04793979]
[1749798717411,6.9625619,144.53,144.51,6.9158]
[1749798717709,0.0471619,144.53,144.5,0.04793979]
[1749798718413,0.0471619,144.53,144.51,6.9163]
[1749798718803,6.9626619,144.53,144.51,6.9163]
[1749798719408,6.9158,144.52,144.5,6.96443979]
[1749798719607,6.9158,144.52,144.5,0.04793979]
[1749798720205,6.9158,144.52,144.5,6.96433979]
[1749798720403,6.9625619,144.53,144.5,6.96433979]
[1749798721209,6.9158,144.52,144.5,6.96433979]
[1749798721910,6.9158,144.52,144.5,0.04793979]
[1749798723217,6.9158,144.52,144.5,6.96463979]
[1749798723510,6.9624619,144.53,144.5,6.96463979]
[1749798723712,5.92842545,144.52,144.51,6.9163]
[1749798723906,0.0471619,144.53,144.51,5.02242966]
[1749798724308,0.0471619,144.53,144.51,11.93842966]
[1749798724511,0.0471619,144.53,144.5,0.04793979]
[1749798725114,0.0471619,144.53,144.51,5.02242966]
[1749798725513,0.0471619,144.53,144.52,6.9158]
[1749798725816,5.97802597,144.53,144.52,6.9158]
[1749798726206,0.0471619,144.53,144.52,6.9158]
[1749798729118,0.0471619,144.53,144.5,0.04793979]
[1749798729318,0.0471619,144.53,144.5,5.07036945]
[1749798729817,0.0471619,144.53,144.52,6.9158]
[1749798733227,0.0471619,144.53,144.52,51.51822966]
[1749798733413,2.2591,144.58,144.56,6.9139]
[1749798733619,5.94224766,144.57,144.56,6.9139]
[1749798734522,13.70262784,144.57,144.55,0.04761796]
[1749798734827,5.02399665,144.55,144.49,39.58]
[1749798735024,6.9166,144.51,144.46,39.58]
[1749798735225,5.94224766,144.5,144.46,44.60399665]
[1749798735411,2.1807,144.52,144.46,44.60399665]
[1749798735611,0.05078532,144.5,144.48,6.96948649]
[1749798735811,0.05078532,144.5,144.48,0.05198649]
[1749798736924,0.05078532,144.5,144.48,6.96958649]
[1749798738120,0.05078532,144.5,144.49,6.9172]
[1749798738322,5.99153216,144.5,144.48,0.05198649]
[1749798738523,0.05078532,144.5,144.48,0.05198649]
[1749798738723,0.05078532,144.5,144.48,6.96938649]
[1749798739125,0.05078532,144.5,144.48,0.05198649]
[1749798739326,0.05078532,144.5,144.48,5.07598314]
[1749798740218,0.05078532,144.5,144.49,6.9172]
[1749798741121,0.05078532,144.5,144.48,11.99348314]
[1749798741326,0.05078532,144.5,144.48,6.96948649]
[1749798741717,6.96758532,144.5,144.48,0.05198649]
[1749798742225,0.05078532,144.5,144.48,0.05198649]
[1749798742429,0.05078532,144.5,144.48,6.96968649]
[1749798743623,0.05078532,144.5,144.49,6.9172]
[1749798746430,0.05078532,144.5,144.49,11.94323214]
[1749798746628,2.2182,144.56,144.49,5.02603214]
[1749798746930,5.97635749,144.55,144.53,5.02603214]
[1749798747127,13.38128712,144.58,144.53,5.02603214]
[1749798747332,5.97613778,144.57,144.53,5.02603214]
[1749798747634,6.02051481,144.56,144.55,11.94003214]
[1749798747930,0.04437703,144.56,144.55,11.94003214]
[1749798749725,13.37938712,144.62,144.59,6.9125]
[1749798749925,5.97531249,144.61,144.59,6.9125]
[1749798750127,5.97531249,144.6,144.59,6.9125]
[1749798750331,6.9112,144.62,144.59,6.9125]
[1749798750527,5.97120144,144.61,144.6,6.912]
[1749798750920,5.97087408,144.61,144.6,6.912]
[1749798751127,5.97087408,144.61,144.59,6.96108793]
[1749798751428,0.04575072,144.62,144.59,0.04868793]
[1749798751632,5.96736405,144.61,144.6,6.9117]
[1749798752033,5.96736405,144.61,144.6,6.912]
[1749798752226,0.04575072,144.62,144.59,0.04868793]
[1749798752630,0.04575072,144.62,144.61,6.9115]
[1749798756836,4.6149,144.68,144.66,6.9088]
[1749798757431,4.6149,144.68,144.64,5.02603214]
[1749798757626,4.6149,144.68,144.65,6.9094]
[1749798757830,2.32824825,144.68,144.65,0.05072959]
[1749798758732,9.23664825,144.68,144.65,0.05072959]
[1749798758924,2.32824825,144.68,144.65,0.05072959]
[1749798759333,5.01556252,144.67,144.61,6.9113]
[1749798759633,7.29646252,144.67,144.61,6.9113]
[1749798759839,6.9101,144.64,144.61,6.9113]
[1749798760236,6.96250925,144.64,144.61,6.9577387]
[1749798761040,0.05240925,144.64,144.62,6.9109]
[1749798761637,6.96250925,144.64,144.61,6.9576387]
[1749798761829,0.05240925,144.64,144.61,0.0464387]
[1749798762235,0.05240925,144.64,144.62,6.9107]
[1749798763545,0.05240925,144.64,144.63,6.9105]
[1749798766142,0.05240925,144.64,144.62,6.9109]
[1749798769735,0.05240925,144.64,144.63,6.9105]
[1749798769936,0.05240925,144.64,144.61,0.0464387]
[1749798770441,5.06940062,144.64,144.57,39.38]
[1749798770642,2.3846,144.63,144.57,39.38]
[1749798770945,9.2954,144.63,144.58,5.01699137]
[1749798771144,2.3846,144.63,144.6,5.01699137]
[1749798771439,6.9098,144.65,144.63,6.9104]
[1749798771742,0.04719864,144.65,144.63,6.9104]
[1749798772243,0.04719864,144.65,144.64,6.91]
[1749798772436,0.04719864,144.65,144.64,11.92699137]
[1749798775448,0.04719864,144.65,144.63,0.04696683]
[1749798775637,0.04719864,144.65,144.59,5.01699137]
[1749798775837,5.01699137,144.64,144.58,39.36]
[1749798776144,2.2853,144.63,144.58,39.36]
[1749798776738,6.95512344,144.62,144.59,6.95892387]
[1749798777046,0.04382344,144.62,144.59,5.06381524]
[1749798777246,0.04382344,144.62,144.6,6.9117]
[1749798777848,0.04382344,144.62,144.59,5.06381524]
[1749798778440,0.04382344,144.62,144.61,11.92849137]
[1749798780241,0.04382344,144.62,144.61,6.9115]
[1749798780444,0.04382344,144.62,144.61,11.92849137]
[1749798780844,0.04382344,144.62,144.61,6.9115]
[1749798781051,0.04382344,144.62,144.6,6.9117]
[1749798781241,6.95482344,144.62,144.59,0.04682387]
[1749798781437,0.04382344,144.62,144.6,6.9119]
[1749798781646,6.95502344,144.62,144.59,0.04682387]
[1749798782046,0.04382344,144.62,144.59,0.04682387]
[1749798782643,0.04382344,144.62,144.6,6.9117]
[1749798783243,0.04382344,144.62,144.61,6.9114]
[1749798786942,0.04382344,144.62,144.6,6.9117]
[1749798787145,0.04382344,144.62,144.59,0.04682387]
[1749798787545,0.04382344,144.62,144.61,6.9115]
[1749798789851,0.04382344,144.62,144.6,6.9117]
[1749798791049,5.99244126,144.61,144.59,0.04682387]
[1749798791249,5.99911441,144.6,144.59,0.04682387]
[1749798791455,0.04382344,144.62,144.6,6.9116]
[1749798792145,6.95482344,144.62,144.6,6.9116]
[1749798792352,6.00278289,144.61,144.6,6.9116]
[1749798793448,0.04382344,144.62,144.6,6.9116]
[1749798794053,6.00164954,144.61,144.6,6.9116]
[1749798794657,6.9119,144.6,144.59,0.04682387]
[1749798794861,12.91354954,144.6,144.59,0.04682387]
[1749798796155,6.00164954,144.6,144.48,93.4545943]
[1749798796351,6.00164954,144.59,144.55,6.9139]
[1749798796556,6.00164954,144.58,144.55,6.9139]
[1749798796865,8.83573378,144.61,144.55,6.9139]
[1749798797058,6.00354512,144.6,144.55,6.9139]
[1749798797257,6.9133,144.58,144.56,0.04057112]
[1749798797461,6.00354512,144.57,144.56,6.95437112]
[1749798798261,6.9133,144.58,144.56,6.95437112]
[1749798798463,6.9133,144.58,144.56,0.04057112]
[1749798799360,6.96274249,144.59,144.56,6.95437112]
[1749798800860,6.913,144.58,144.56,6.95437112]
[1749798801061,6.913,144.58,144.56,0.04057112]
[1749798801758,5.98443647,144.57,144.56,0.04057112]
[1749798802061,12.89773647,144.57,144.56,0.04057112]
[1749798802261,5.98443647,144.57,144.56,0.04057112]
[1749798802657,5.98443647,144.57,144.56,6.95437112]
[1749798802858,0.05004249,144.59,144.56,0.04057112]
[1749798803061,5.98269629,144.58,144.56,0.04057112]
[1749798803256,6.96264249,144.59,144.56,0.04057112]
[1749798803457,5.98323157,144.58,144.56,6.95397112]
[1749798803664,6.96264249,144.59,144.56,6.95397112]
[1749798804265,5.98306424,144.58,144.56,6.95397112]
[1749798804465,6.96264249,144.59,144.56,6.95397112]
[1749798804660,5.98247296,144.58,144.56,6.95397112]
[1749798804866,6.96264249,144.59,144.56,6.95397112]
[1749798805066,12.89547296,144.58,144.56,0.04057112]
[1749798805365,6.913,144.58,144.56,0.04057112]
[1749798806062,6.913,144.58,144.56,6.95437112]
[1749798808167,6.913,144.58,144.56,0.04057112]
[1749798808968,6.9133,144.57,144.56,0.04057112]
[1749798810062,12.8940474,144.57,144.56,0.04057112]
[1749798810464,6.9133,144.57,144.56,0.04057112]
[1749798811071,0.05004249,144.59,144.56,0.04057112]
[1749798811670,6.96284249,144.59,144.56,6.95427112]
[1749798812363,0.05004249,144.59,144.56,6.95427112]
[1749798812664,5.97978159,144.58,144.56,0.04057112]
[1749798812871,0.05004249,144.59,144.56,0.04057112]
[1749798813073,5.97994809,144.58,144.56,0.04057112]
[1749798813262,6.9133,144.57,144.56,0.04057112]
[1749798813467,5.98020559,144.57,144.5,437.6]
[1749798813675,10.99768993,144.56,144.5,39.22]
[1749798813873,5.98020559,144.55,144.5,39.22]
[1749798814173,5.01748434,144.56,144.51,6.9159]
[1749798814371,6.02401105,144.55,144.5,39.22]
[1749798814571,6.9153,144.53,144.51,6.9159]
[1749798815273,6.915,144.54,144.51,6.9159]
[1749798815476,0.05201631,144.55,144.51,6.9159]
[1749798815666,0.05201631,144.55,144.5,39.22]
[1749798815868,6.9161,144.52,144.47,44.05748434]
[1749798816065,0.05010431,144.51,144.47,44.05748434]
[1749798817775,0.05010431,144.51,144.49,6.917]
[1749798819475,0.05010431,144.51,144.47,39.04]
[1749798820079,6.917,144.5,144.47,45.9579]
[1749798820382,0.05010431,144.51,144.47,39.04]
[1749798820576,5.06758865,144.51,144.44,39.04]
[1749798820982,5.95241351,144.5,144.44,39.04]
[1749798821489,46.43078865,144.51,144.45,6.919]
[1749798821676,5.94868362,144.5,144.45,6.919]
[1749798821877,6.9179,144.48,144.45,6.919]
[1749798822072,6.96628995,144.48,144.45,6.919]
[1749798822474,0.04838995,144.48,144.41,5.01748434]
[1749798822682,5.01748434,144.47,144.41,39.06]
[1749798822881,2.2027,144.46,144.41,39.06]
[1749798823083,0.0436572,144.45,144.39,5.01748434]
[1749798823884,0.0436572,144.45,144.38,44.07748434]
[1749798824086,6.9204,144.43,144.4,6.9212]
[1749798824584,0.0436572,144.45,144.38,44.07748434]
[1749798824787,0.04439257,144.43,144.41,6.9208]
[1749798825382,6.96449257,144.43,144.4,6.9212]
[1749798827093,0.04439257,144.43,144.41,6.9209]
[1749798827986,0.04439257,144.43,144.42,6.9205]
[1749798828391,0.04439257,144.43,144.4,5.01748434]
[1749798829797,0.04439257,144.43,144.41,6.9207]
[1749798830096,0.04439257,144.43,144.4,5.01748434]
[1749798830296,0.04439257,144.43,144.42,5.01748434]
[1749798830901,0.04439257,144.43,144.42,6.9205]
[1749798831103,0.04439257,144.43,144.39,5.01748434]
[1749798831400,0.04439257,144.43,144.41,6.9207]
[1749798832407,6.96459257,144.43,144.4,6.9212]
[1749798834003,6.9205,144.42,144.4,6.9212]
[1749798834199,0.04439257,144.43,144.4,6.9212]
[1749798834590,6.96469257,144.43,144.4,6.9212]
[1749798834890,0.04439257,144.43,144.39,6.9217]
[1749798835100,6.9209,144.42,144.39,6.9217]
[1749798835703,6.96469257,144.43,144.4,6.9214]
[1749798836100,0.04439257,144.43,144.42,6.9205]
[1749798836804,39.08,144.49,144.44,6.9193]
[1749798836999,39.08,144.49,144.43,5.03111426]
[1749798837305,6.9187,144.46,144.43,6.9196]
[1749798837503,5.03111426,144.48,144.42,39.08]
[1749798837706,6.9191,144.45,144.44,0.04439258]
[1749798837903,5.08401853,144.46,144.39,39.08]
[1749798838100,2.3765,144.45,144.39,39.08]
[1749798838408,2.3765,144.45,144.39,46.0019]
[1749798838602,2.3765,144.45,144.39,39.08]
[1749798838603,5.03111426,144.44,144.39,39.08]
[1749798838910,6.9218,144.4,144.37,11.95381426]
[1749798839092,6.97295926,144.4,144.37,11.95381426]
[1749798840199,6.97295926,144.4,144.38,6.9224]
[1749798840401,6.97295926,144.4,144.37,5.03111426]
[1749798840799,6.97295926,144.4,144.37,11.95381426]
[1749798841806,6.97295926,144.4,144.38,6.9224]
[1749798842009,6.97295926,144.4,144.37,5.03111426]
[1749798842305,6.922,144.39,144.37,5.03111426]
[1749798842605,0.05115926,144.4,144.37,11.95381426]
[1749798842808,6.97295926,144.4,144.37,11.95381426]
[1749798843001,6.97295926,144.4,144.34,5.03111426]
[1749798843002,5.08227352,144.4,144.34,5.03111426]
[1749798843198,5.08227352,144.4,144.33,46.0048]
[1749798843400,5.08227352,144.4,144.33,39.08]
[1749798843604,5.03111426,144.38,144.33,39.08]
[1749798843803,5.03111426,144.38,144.29,5.68219145]
[1749798843804,5.03111426,144.36,144.3,39.08]
[1749798844402,6.9249,144.33,144.3,39.08]
[1749798844601,6.97651976,144.33,144.3,39.08]
[1749798844795,0.05161976,144.33,144.3,39.08]
[1749798846001,6.9255,144.32,144.3,39.08]
[1749798846203,0.05161976,144.33,144.28,398.6]
[1749798846504,6.926,144.31,144.27,38.92]
[1749798846806,6.926,144.31,144.28,5.03111426]
[1749798847004,6.926,144.31,144.28,11.95791426]
[1749798847510,0.05161976,144.33,144.28,6.9268]
[1749798848410,5.03111426,144.32,144.27,38.92]
[1749798848909,6.9265,144.3,144.27,38.92]
[1749798849098,6.97818764,144.3,144.27,38.92]
[1749798849506,6.9267,144.29,144.27,45.8472]
[1749798849904,0.05168764,144.3,144.27,45.8472]
[1749798850106,6.97828764,144.3,144.27,45.8472]
[1749798850406,0.05168764,144.3,144.27,45.8472]
[1749798850802,6.9267,144.29,144.27,38.92]
[1749798851012,0.05168764,144.3,144.27,38.92]
[1749798851508,0.05168764,144.3,144.24,46.13801426]
[1749798851701,5.0828019,144.3,144.24,46.13801426]
[1749798851901,5.0828019,144.3,144.24,38.92]
[1749798852411,6.9282,144.26,144.24,38.92]
[1749798852603,6.97825703,144.26,144.24,38.92]
[1749798854214,6.9286,144.25,144.24,38.92]
[1749798854409,0.05005703,144.26,144.24,38.92]
[1749798855414,6.97855703,144.26,144.24,38.92]
[1749798857008,0.05005703,144.26,144.25,5.03111426]
[1749798857210,0.05005703,144.26,144.24,38.92]
[1749798857410,0.05005703,144.26,144.24,45.8487]
[1749798858107,0.05005703,144.26,144.25,6.9286]
[1749798858709,0.05005703,144.26,144.25,11.95971426]
[1749798858918,2.2531,144.32,144.28,6.9271]
[1749798859311,6.926,144.31,144.28,6.9271]
[1749798859911,6.97787819,144.31,144.28,6.97542625]
[1749798860505,0.05187819,144.31,144.29,5.03111426]
[1749798860815,46.35361426,144.36,144.3,5.03111426]
[1749798861119,6.9246,144.34,144.31,6.9254]
[1749798861712,6.97163654,144.34,144.31,6.97451458]
[1749798862515,6.97163654,144.34,144.32,6.9252]
[1749798862713,0.04703654,144.34,144.32,6.9252]
[1749798863216,0.04703654,144.34,144.33,11.95581426]
[1749798864412,6.9226,144.38,144.35,6.9233]
[1749798864717,6.9226,144.38,144.35,11.95441426]
[1749798865421,6.97338263,144.38,144.35,12.00101049]
[1749798865920,0.05078263,144.38,144.36,6.9232]
[1749798866217,6.97318263,144.38,144.35,12.00121049]
[1749798867424,0.05078263,144.38,144.37,5.03111426]
[1749798867815,0.05078263,144.38,144.37,11.95391426]
[1749798868827,2.2187,144.42,144.39,6.9215]
[1749798869012,2.2472,144.44,144.39,5.03111426]
[1749798869218,5.83523923,144.43,144.39,5.03111426]
[1749798869522,5.83523923,144.42,144.39,11.95261426]
[1749798869822,0.04994087,144.42,144.39,12.00336764]
[1749798870220,0.04994087,144.42,144.39,0.05075338]
[1749798870524,6.9212,144.41,144.39,0.05075338]
[1749798870720,0.04994087,144.42,144.39,0.05075338]
[1749798870920,0.04994087,144.42,144.39,5.08186764]
[1749798871625,6.97044087,144.42,144.39,5.08186764]
[1749798871820,0.04994087,144.42,144.39,5.08186764]
[1749798872825,0.04994087,144.42,144.4,6.9214]
[1749798873021,0.04994087,144.42,144.41,5.03111426]
[1749798873223,2.3494,144.47,144.43,5.03111426]
[1749798873524,6.9183,144.47,144.43,5.03111426]
[1749798873730,43.97111426,144.49,144.43,11.95081426]
[1749798873920,8.57592358,144.48,144.43,11.95081426]
[1749798874120,2.76187257,144.47,144.44,0.04584431]
[1749798874322,0.04508879,144.47,144.44,0.04584431]
[1749798874721,6.96348879,144.47,144.44,0.04584431]
[1749798874920,0.04508879,144.47,144.44,0.04584431]
[1749798875120,6.9186,144.46,144.44,0.04584431]
[1749798876228,6.96318879,144.47,144.44,6.96514431]
[1749798876431,0.04508879,144.47,144.44,0.04584431]
[1749798876927,0.04508879,144.47,144.45,11.94981426]
[1749798878626,0.04508879,144.47,144.46,6.9185]
[1749798878827,0.04508879,144.47,144.45,5.03111426]
[1749798879429,0.04508879,144.47,144.45,11.94981426]
[1749798879628,0.04508879,144.47,144.45,5.03111426]
[1749798879826,0.04508879,144.47,144.46,6.9185]
[1749798881825,0.04508879,144.47,144.44,38.80584431]
[1749798882228,0.04508879,144.47,144.44,43.83528339]
[1749798882430,0.04508879,144.47,144.46,5.02943908]
[1749798882626,0.00958799,144.47,144.46,11.94793908]
[1749798882827,4.5714,144.54,144.46,5.02943908]
[1749798883033,6.9154,144.53,144.5,6.9162]
[1749798883333,4.5714,144.54,144.51,5.02943908]
[1749798883528,38.76,144.58,144.51,5.02943908]
[1749798883735,6.96216795,144.56,144.53,6.95991964]
[1749798884221,0.04816795,144.56,144.53,0.04501964]
[1749798884932,6.9145,144.55,144.53,0.04501964]
[1749798885133,0.04816795,144.56,144.53,11.98945872]
[1749798885334,0.04816795,144.56,144.53,0.04501964]
[1749798885535,6.9147,144.54,144.53,0.04501964]
[1749798885934,0.04816795,144.56,144.53,0.04501964]
[1749798885935,0.04816795,144.56,144.53,5.07445872]
[1749798887536,6.96206795,144.56,144.53,11.98945872]
[1749798888736,0.04816795,144.56,144.55,5.02943908]
[1749798889539,0.04816795,144.56,144.55,11.94363908]
[1749798890336,43.76943908,144.69,144.55,16.97887816]
[1749798890537,43.76943908,144.69,144.6,5.02943908]
[1749798890538,5.02943908,144.67,144.6,5.02943908]
[1749798890739,5.02943908,144.67,144.6,6.9116]
[1749798891036,6.9116,144.61,144.56,43.74943908]
[1749798891235,5.02943908,144.63,144.56,43.74943908]
[1749798891430,0.04578613,144.6,144.57,0.04962905]
[1749798891633,5.02943908,144.59,144.57,0.04962905]
[1749798891832,7.28393908,144.59,144.52,38.72]
[1749798892040,5.02943908,144.57,144.51,38.72]
[1749798892340,6.914,144.56,144.53,6.9149]
[1749798892639,5.02943908,144.57,144.51,38.72]
[1749798893036,0.04614153,144.55,144.54,6.9145]
[1749798893636,0.04614153,144.55,144.53,6.95975604]
[1749798893835,5.07558061,144.55,144.53,0.04475604]
[1749798894441,6.9147,144.54,144.53,0.04475604]
[1749798894637,0.04614153,144.55,144.53,0.04475604]
[1749798894945,5.07558061,144.55,144.53,0.04475604]
[1749798895446,6.9147,144.54,144.53,0.04475604]
[1749798895947,5.07558061,144.55,144.48,38.72]
[1749798896155,6.9165,144.51,144.48,45.6374]
[1749798896354,5.02943908,144.53,144.48,45.6374]
[1749798896950,6.96112372,144.52,144.49,0.04849796]
[1749798897353,6.96112372,144.52,144.49,6.96559796]
[1749798899557,0.04522372,144.52,144.49,0.04849796]
[1749798899853,5.02943908,144.51,144.49,0.04849796]
[1749798900262,6.9167,144.5,144.49,0.04849796]
[1749798900554,6.9167,144.5,144.42,2.2236]
[1749798900555,5.02943908,144.51,144.42,5.02943908]
[1749798900756,5.02943908,144.48,144.44,6.9193]
[1749798901059,5.02943908,144.48,144.42,38.72]
[1749798901653,5.07816623,144.46,144.44,0.0450352]
[1749798902054,5.07816623,144.46,144.4,6.9213]
[1749798902256,5.02943908,144.44,144.39,38.72]
[1749798902660,5.02943908,144.44,144.41,6.921]
[1749798902661,11.94933908,144.44,144.41,6.921]
[1749798903261,6.92,144.43,144.41,6.96750727]
[1749798903756,6.96962742,144.44,144.41,6.96750727]
[1749798904256,0.04992742,144.44,144.42,6.9204]
[1749798904855,6.96972742,144.44,144.41,6.96720727]
[1749798905959,0.04992742,144.44,144.41,0.04650727]
[1749798906460,6.9203,144.43,144.41,0.04650727]
[1749798906662,0.04992742,144.44,144.41,0.04650727]
[1749798907160,6.96992742,144.44,144.41,6.96740727]
[1749798907463,8.67565049,144.44,144.41,0.04650727]
[1749798908352,6.9205,144.42,144.41,0.04650727]
[1749798908858,6.9223,144.39,144.36,6.9231]
[1749798909461,6.9223,144.39,144.35,6.9237]
[1749798909960,6.97331431,144.38,144.36,0.04851908]
[1749798910658,6.9229,144.37,144.36,0.04851908]
[1749798910863,0.05091431,144.38,144.36,0.04851908]
[1749798911067,0.05091431,144.38,144.36,8.67424215]
[1749798911255,0.05091431,144.38,144.37,6.9229]
[1749798911662,0.05091431,144.38,144.36,0.04851908]
[1749798911961,0.05091431,144.38,144.36,6.97161908]
[1749798912162,0.05091431,144.38,144.36,0.04851908]
[1749798913369,0.05091431,144.38,144.37,6.9229]
[1749798913662,38.58,144.45,144.36,8.67424215]
[1749798913965,38.58,144.45,144.34,38.58]
[1749798913966,38.58,144.45,144.38,8.62572307]
[1749798914266,38.58,144.45,144.39,38.6]
[1749798914463,6.9198,144.44,144.41,6.9207]
[1749798914660,6.9678706,144.44,144.41,6.97284078]
[1749798915363,0.0480706,144.44,144.41,6.97284078]
[1749798915866,6.9678706,144.44,144.41,6.97284078]
[1749798916261,0.0480706,144.44,144.41,0.05214078]
[1749798916454,6.9203,144.43,144.41,0.05214078]
[1749798917566,0.0480706,144.44,144.41,0.05214078]
[1749798917970,6.9201,144.43,144.41,0.05214078]
[1749798918665,0.0480706,144.44,144.41,0.05214078]
[1749798919059,6.9678706,144.44,144.41,6.97284078]
[1749798920366,6.9678706,144.44,144.42,6.9205]
[1749798920667,0.0480706,144.44,144.42,6.9205]
[1749798920869,0.0480706,144.44,144.41,0.05214078]
[1749798921167,6.9678706,144.44,144.41,6.97294078]
[1749798922368,0.0480706,144.44,144.41,0.05214078]
[1749798922665,0.0480706,144.44,144.41,8.67786385]
[1749798922965,0.0480706,144.44,144.43,15.54572307]
[1749798923959,7.06e-05,144.44,144.43,15.54572307]
[1749798924162,7.06e-05,144.44,144.41,0.05214078]
[1749798924463,7.06e-05,144.44,144.41,38.65214078]
[1749798924663,7.06e-05,144.44,144.43,6.92]
[1749798925261,7.06e-05,144.44,144.42,6.9202]
[1749798925466,7.06e-05,144.44,144.41,38.65214078]
[1749798926366,7.06e-05,144.44,144.43,6.92]
[1749798927465,7.06e-05,144.44,144.42,6.9203]
[1749798928966,7.06e-05,144.44,144.43,6.92]
[1749798931270,7.06e-05,144.44,144.43,11.9490697]
[1749798931765,7.06e-05,144.44,144.43,6.92]
[1749798932365,7.06e-05,144.44,144.41,43.68121048]
[1749798932764,7.06e-05,144.44,144.43,6.92]
[1749798933974,6.9196706,144.44,144.41,38.65214078]
[1749798934172,7.06e-05,144.44,144.41,38.65214078]
[1749798934363,7.06e-05,144.44,144.43,6.92]
[1749798934871,7.06e-05,144.44,144.42,6.9202]
[1749798935068,7.06e-05,144.44,144.41,38.65214078]
[1749798935474,7.06e-05,144.44,144.41,45.57284078]
[1749798935768,7.06e-05,144.44,144.41,38.65214078]
[1749798936171,7.06e-05,144.44,144.42,6.9204]
[1749798936475,7.06e-05,144.44,144.41,38.65214078]
[1749798936663,7.06e-05,144.44,144.41,43.68121048]
[1749798936867,7.06e-05,144.44,144.43,6.92]
[1749798937475,7.06e-05,144.44,144.41,43.68121048]
[1749798937876,7.06e-05,144.44,144.42,6.9205]
[1749798938776,7.06e-05,144.44,144.41,45.57304078]
[1749798938971,7.06e-05,144.44,144.41,38.65214078]
[1749798939173,7.06e-05,144.44,144.42,6.9201]
[1749798940476,6.9196706,144.44,144.41,45.57284078]
[1749798940877,7.06e-05,144.44,144.42,5.02871371]
[1749798941079,5.84696703,144.49,144.43,5.02639113]
[1749798941279,2.3704,144.5,144.46,5.02639113]
[1749798941578,12.76542808,144.49,144.46,11.94469113]
[1749798941769,2.3704,144.5,144.46,5.02639113]
[1749798942175,0.05087587,144.49,144.48,6.9174]
[1749798943085,0.05087587,144.49,144.47,6.96521463]
[1749798943268,0.05087587,144.49,144.47,0.04731463]
[1749798943670,0.05087587,144.49,144.48,6.9176]
[1749798945383,0.05087587,144.49,144.48,11.94399113]
[1749798948980,7.587e-05,144.49,144.48,11.94399113]
[1749798950384,9.2725,144.55,144.53,6.9151]
[1749798950588,2.358,144.55,144.53,6.9151]
[1749798950974,2.358,144.55,144.5,38.42]
[1749798950975,2.2669,144.58,144.5,38.42]
[1749798951181,47.94279113,144.6,144.53,5.02639113]
[1749798951389,5.86453623,144.59,144.53,5.02639113]
[1749798951687,5.02639113,144.56,144.47,5.02639113]
[1749798951891,5.02639113,144.5,144.45,38.42]
[1749798952082,6.9177,144.48,144.45,6.9187]
[1749798952403,2.3236,144.49,144.42,43.44639113]
[1749798952583,9.2412,144.49,144.42,43.44639113]
[1749798952786,0.04412919,144.47,144.46,6.9185]
[1749798954679,0.04412919,144.47,144.46,11.94489113]